[Event "*** Titled Tuesday Blitz"]
[Site "Chess.com"]
[Date "2020.03.03"]
[Round "2"]
[White "ZWISCHENZUGGED"]
[Black "Keranke"]
[Result "0-1"]
[WhiteElo "2566"]
[BlackElo "2795"]
[TimeControl "180+1"]
[EndTime "9:18:34 PST"]
[Termination "Keranke won by resignation"]

1. d4 {[%clk 0:03:00.9]} 1... g6 {[%clk 0:02:59.3]} 2. e4 {[%clk 0:03:00.8]}
2... Bg7 {[%clk 0:02:59.8]} 3. Nc3 {[%clk 0:03:01.3]} 3... d6 {[%clk 0:03:00.4]}
4. Be3 {[%clk 0:03:01.6]} 4... a6 {[%clk 0:03:01]} 5. Qd2 {[%clk 0:03:01.5]}
5... b5 {[%clk 0:03:01.5]} 6. O-O-O {[%clk 0:03:00.2]} 6... Nd7 {[%clk
0:03:01.6]} 7. h4 {[%clk 0:02:59.9]} 7... h6 {[%clk 0:03:00.9]} 8. f3 {[%clk
0:02:58]} 8... Bb7 {[%clk 0:03:01]} 9. Nh3 {[%clk 0:02:54.7]} 9... Rc8 {[%clk
0:03:00.7]} 10. a3 {[%clk 0:02:54]} 10... c5 {[%clk 0:03:00.6]} 11. dxc5 {[%clk
0:02:53.1]} 11... Nxc5 {[%clk 0:03:01.5]} 12. Bd4 {[%clk 0:02:51]} 12... Nf6
{[%clk 0:02:59.6]} 13. Kb1 {[%clk 0:02:51.1]} 13... O-O {[%clk 0:02:30.3]} 14.
g4 {[%clk 0:02:48.1]} 14... Ne6 {[%clk 0:02:30.5]} 15. Be3 {[%clk 0:02:44]}
15... Rxc3 {[%clk 0:02:30]} 16. Qxc3 {[%clk 0:02:21.9]} 16... Nxg4 {[%clk
0:02:25.1]} 17. Qd2 {[%clk 0:02:22.4]} 17... Nxe3 {[%clk 0:02:25.1]} 18. Qxe3
{[%clk 0:02:23.3]} 18... Qc7 {[%clk 0:02:13.4]} 19. Nf4 {[%clk 0:01:48.6]} 19...
Rc8 {[%clk 0:02:08.9]} 20. c3 {[%clk 0:01:32.3]} 20... Nc5 {[%clk 0:01:44.6]}
21. Rg1 {[%clk 0:01:02.1]} 21... Na4 {[%clk 0:01:42.4]} 22. Rc1 {[%clk
0:00:29.4]} 22... Qc5 {[%clk 0:01:41.6]} 23. Qxc5 {[%clk 0:00:23.9]} 23... Rxc5
{[%clk 0:01:42.5]} 24. Bd3 {[%clk 0:00:20.8]} 24... h5 {[%clk 0:01:40.9]} 25.
Ne2 {[%clk 0:00:18.6]} 25... Bf6 {[%clk 0:01:39.3]} 26. Rh1 {[%clk 0:00:18.7]}
26... d5 {[%clk 0:01:39.8]} 27. Nd4 {[%clk 0:00:16.4]} 27... Rc8 {[%clk
0:01:33.4]} 28. Rce1 {[%clk 0:00:12.6]} 28... Nc5 {[%clk 0:01:33.1]} 29. Bc2
{[%clk 0:00:09]} 29... e5 {[%clk 0:01:31.9]} 30. Nb3 {[%clk 0:00:07.1]} 30...
Ne6 {[%clk 0:01:28]} 31. Na5 {[%clk 0:00:06.2]} 31... Ba8 {[%clk 0:01:28.4]} 32.
exd5 {[%clk 0:00:06.3]} 32... Bxd5 {[%clk 0:01:28]} 33. Be4 {[%clk 0:00:07]}
33... Bxe4+ {[%clk 0:01:26.3]} 34. fxe4 {[%clk 0:00:07.9]} 34... Rd8 {[%clk
0:01:26.3]} 35. Rd1 {[%clk 0:00:07.7]} 35... Rxd1+ {[%clk 0:01:25.4]} 36. Rxd1
{[%clk 0:00:08.6]} 36... Bxh4 {[%clk 0:01:26.3]} 37. Nc6 {[%clk 0:00:08.9]}
37... Bg3 {[%clk 0:01:26.2]} 38. Nb8 {[%clk 0:00:08.2]} 38... Nc5 {[%clk
0:01:25.1]} 39. Rd5 {[%clk 0:00:06.9]} 39... Nxe4 {[%clk 0:01:23.9]} 40. Nxa6
{[%clk 0:00:07.7]} 40... h4 {[%clk 0:01:24.3]} 41. Rd1 {[%clk 0:00:04.8]} 41...
Nf2 {[%clk 0:01:24.6]} 42. Rf1 {[%clk 0:00:04.6]} 42... h3 {[%clk 0:01:25]} 43.
Nc7 {[%clk 0:00:05.3]} 43... h2 {[%clk 0:01:25.3]} 44. Nxb5 {[%clk 0:00:06]}
44... h1=Q {[%clk 0:01:25.6]} 45. Rxh1 {[%clk 0:00:06.8]} 45... Nxh1 {[%clk
0:01:26.5]} 46. a4 {[%clk 0:00:07.7]} 46... e4 {[%clk 0:01:26.8]} 47. a5 {[%clk
0:00:07.9]} 47... e3 {[%clk 0:01:25.3]} 48. Nd4 {[%clk 0:00:08.5]} 48... Be5
{[%clk 0:01:24.4]} 49. Ne2 {[%clk 0:00:08.3]} 49... Ng3 {[%clk 0:01:24.2]} 50.
a6 {[%clk 0:00:06.7]} 50... Bb8 {[%clk 0:01:18.6]} 51. Nxg3 {[%clk 0:00:06.5]}
51... Bxg3 {[%clk 0:01:19.5]} 52. a7 {[%clk 0:00:06.5]} 52... e2 {[%clk
0:01:20.1]} 53. a8=Q+ {[%clk 0:00:07]} 53... Kg7 {[%clk 0:01:20.7]} 54. Ka2
{[%clk 0:00:04.1]} 54... e1=Q {[%clk 0:01:21.6]} 55. Qd5 {[%clk 0:00:04.3]}
55... Qe6 {[%clk 0:01:21.5]} 56. Qxe6 {[%clk 0:00:04.8]} 56... fxe6 {[%clk
0:01:22.4]} 0-1

[Event "*** Titled Tuesday Blitz"]
[Site "Chess.com"]
[Date "2020.03.03"]
[Round "2"]
[White "Boorchess"]
[Black "secretsuperstar7"]
[Result "1-0"]
[WhiteElo "2518"]
[BlackElo "2243"]
[TimeControl "180+1"]
[EndTime "9:18:37 PST"]
[Termination "Boorchess won on time"]

1. d4 {[%clk 0:03:00.9]} 1... Nf6 {[%clk 0:02:58.5]} 2. c4 {[%clk 0:03:00.7]}
2... e6 {[%clk 0:02:56.3]} 3. g3 {[%clk 0:03:00.6]} 3... d5 {[%clk 0:02:53]} 4.
Nf3 {[%clk 0:02:59.9]} 4... dxc4 {[%clk 0:02:50.8]} 5. Qa4+ {[%clk 0:02:58.3]}
5... Bd7 {[%clk 0:02:08.8]} 6. Qxc4 {[%clk 0:02:56.8]} 6... a6 {[%clk 0:01:56]}
7. Bg2 {[%clk 0:02:55.4]} 7... Bc6 {[%clk 0:01:33.2]} 8. O-O {[%clk 0:02:53.7]}
8... Be7 {[%clk 0:01:25]} 9. Bg5 {[%clk 0:02:50.4]} 9... O-O {[%clk 0:01:22.3]}
10. Nc3 {[%clk 0:02:40]} 10... Nbd7 {[%clk 0:01:18.8]} 11. Rfd1 {[%clk
0:02:38.6]} 11... Nb6 {[%clk 0:01:12.9]} 12. Qb3 {[%clk 0:02:37.6]} 12... Nbd5
{[%clk 0:01:05.4]} 13. Bxf6 {[%clk 0:02:34.5]} 13... Bxf6 {[%clk 0:00:55.1]} 14.
Rac1 {[%clk 0:02:31.4]} 14... Qe7 {[%clk 0:00:38.5]} 15. Ne4 {[%clk 0:02:22.7]}
15... Nb6 {[%clk 0:00:18.2]} 16. Nxf6+ {[%clk 0:02:13.9]} 16... Qxf6 {[%clk
0:00:17.1]} 17. Ne5 {[%clk 0:02:12.3]} 17... Bxg2 {[%clk 0:00:15.8]} 18. Kxg2
{[%clk 0:02:11.5]} 18... Rac8 {[%clk 0:00:15.7]} 19. e3 {[%clk 0:02:03.1]} 19...
Rfd8 {[%clk 0:00:14.8]} 20. Rc5 {[%clk 0:01:56.1]} 20... Qe7 {[%clk 0:00:13.4]}
21. Rdc1 {[%clk 0:01:55.7]} 21... f6 {[%clk 0:00:12.5]} 22. Nd3 {[%clk
0:01:53.9]} 22... Kh8 {[%clk 0:00:11.1]} 23. f4 {[%clk 0:01:49.5]} 23... Rd7
{[%clk 0:00:09.5]} 24. R5c2 {[%clk 0:01:42.7]} 24... Nd5 {[%clk 0:00:08.7]} 25.
Kf2 {[%clk 0:01:40.7]} 25... b6 {[%clk 0:00:07.7]} 26. Rc6 {[%clk 0:01:37.9]}
26... Rb8 {[%clk 0:00:06.4]} 27. Qc2 {[%clk 0:01:35.4]} 27... Nb4 {[%clk
0:00:03.3]} 28. Nxb4 {[%clk 0:01:34.5]} 28... Qxb4 {[%clk 0:00:03.1]} 29. Rxc7
{[%clk 0:01:33.5]} 29... Rxc7 {[%clk 0:00:04]} 30. Qxc7 {[%clk 0:01:32.9]} 30...
Qd2+ {[%clk 0:00:04.9]} 31. Kf3 {[%clk 0:01:32.8]} 31... Rg8 {[%clk 0:00:03.3]}
32. Qc2 {[%clk 0:01:32.2]} 32... Qb4 {[%clk 0:00:02.3]} 33. a3 {[%clk
0:01:31.7]} 33... Qa5 {[%clk 0:00:02.4]} 34. Kf2 {[%clk 0:01:28.4]} 34... Qd5
{[%clk 0:00:02.9]} 35. Qc6 {[%clk 0:01:25.6]} 35... Qh5 {[%clk 0:00:02.5]} 36.
h4 {[%clk 0:01:21.3]} 36... h6 {[%clk 0:00:03.2]} 37. Qf3 {[%clk 0:01:19.7]}
37... Qf5 {[%clk 0:00:03]} 38. h5 {[%clk 0:01:15.7]} 38... Qb5 {[%clk
0:00:02.8]} 39. Qe2 {[%clk 0:01:13.9]} 39... Qa5 {[%clk 0:00:02]} 40. Rc6 {[%clk
0:01:10.8]} 40... e5 {[%clk 0:00:02.2]} 41. dxe5 {[%clk 0:01:05.9]} 41... fxe5
{[%clk 0:00:02.1]} 42. f5 {[%clk 0:01:06.1]} 42... Rf8 {[%clk 0:00:02.4]} 43. g4
{[%clk 0:01:05.5]} 43... e4 {[%clk 0:00:02.6]} 44. Qc2 {[%clk 0:01:04]} 44...
Qe5 {[%clk 0:00:01.5]} 45. Qc3 {[%clk 0:01:02.6]} 45... Qe7 {[%clk 0:00:01.9]}
46. Rxh6+ {[%clk 0:00:56.3]} 1-0

[Event "*** Titled Tuesday Blitz"]
[Site "Chess.com"]
[Date "2020.03.03"]
[Round "2"]
[White "Vegan4future"]
[Black "Firouzja2003"]
[Result "0-1"]
[WhiteElo "2546"]
[BlackElo "3075"]
[TimeControl "180+1"]
[EndTime "9:18:38 PST"]
[Termination "Firouzja2003 won by resignation"]

1. e4 {[%clk 0:02:49.3]} 1... e6 {[%clk 0:02:54]} 2. Nf3 {[%clk 0:02:48.2]} 2...
d5 {[%clk 0:02:54.9]} 3. Nc3 {[%clk 0:02:48.6]} 3... Nf6 {[%clk 0:02:51.9]} 4.
e5 {[%clk 0:02:48.3]} 4... Nfd7 {[%clk 0:02:52.2]} 5. d4 {[%clk 0:02:49.2]} 5...
c5 {[%clk 0:02:52.4]} 6. dxc5 {[%clk 0:02:50.1]} 6... Nc6 {[%clk 0:02:51.1]} 7.
Bf4 {[%clk 0:02:50.3]} 7... a6 {[%clk 0:02:47.7]} 8. Bd3 {[%clk 0:02:49.9]} 8...
h6 {[%clk 0:02:46.7]} 9. Bg3 {[%clk 0:02:49.7]} 9... g5 {[%clk 0:02:45.2]} 10.
Qe2 {[%clk 0:02:38.3]} 10... g4 {[%clk 0:02:43.8]} 11. Nh4 {[%clk 0:02:28.3]}
11... h5 {[%clk 0:02:34.7]} 12. h3 {[%clk 0:02:26.6]} 12... Be7 {[%clk
0:02:24.5]} 13. hxg4 {[%clk 0:02:17.3]} 13... hxg4 {[%clk 0:02:24.3]} 14. Qxg4
{[%clk 0:02:17]} 14... Ndxe5 {[%clk 0:02:23.8]} 15. Qa4 {[%clk 0:01:57.1]} 15...
Nxd3+ {[%clk 0:01:59.8]} 16. cxd3 {[%clk 0:01:57.2]} 16... d4 {[%clk 0:01:59]}
17. Ne4 {[%clk 0:01:49]} 17... Bxh4 {[%clk 0:01:58.4]} 18. Nd6+ {[%clk
0:01:38.7]} 18... Kf8 {[%clk 0:01:57.6]} 19. Ke2 {[%clk 0:01:10.4]} 19... Kg7
{[%clk 0:01:50.9]} 20. Rh3 {[%clk 0:00:48]} 20... Bxg3 {[%clk 0:01:30.5]} 21.
Rxg3+ {[%clk 0:00:48.7]} 21... Kf8 {[%clk 0:01:31.4]} 22. Rf3 {[%clk 0:00:31.1]}
22... Rh7 {[%clk 0:01:28.1]} 23. Rxf7+ {[%clk 0:00:21.7]} 23... Rxf7 {[%clk
0:01:27.6]} 24. Rh1 {[%clk 0:00:22.2]} 24... Qf6 {[%clk 0:01:26.6]} 25. Nxf7
{[%clk 0:00:21.5]} 25... Kxf7 {[%clk 0:01:26.6]} 26. Qb3 {[%clk 0:00:20.8]}
26... Qe5+ {[%clk 0:01:20.1]} 27. Kd1 {[%clk 0:00:20]} 27... Qxc5 {[%clk
0:01:15.6]} 28. Rh7+ {[%clk 0:00:18.8]} 28... Kf6 {[%clk 0:01:15.7]} 29. Rh8
{[%clk 0:00:19.1]} 29... Kg7 {[%clk 0:01:02.6]} 30. Re8 {[%clk 0:00:18.6]} 30...
Kf7 {[%clk 0:01:01.7]} 31. Rh8 {[%clk 0:00:18.8]} 31... Qe5 {[%clk 0:01:02.3]}
32. Rh7+ {[%clk 0:00:17.9]} 32... Kg6 {[%clk 0:01:02.4]} 33. Rh3 {[%clk
0:00:17]} 33... Qd5 {[%clk 0:00:55.7]} 34. Rg3+ {[%clk 0:00:17.9]} 34... Kf7
{[%clk 0:00:55.6]} 35. Qb6 {[%clk 0:00:18.8]} 35... Bd7 {[%clk 0:00:51.8]} 36.
Qc7 {[%clk 0:00:16]} 36... Rh8 {[%clk 0:00:47.3]} 37. Qf4+ {[%clk 0:00:15.9]}
37... Qf5 {[%clk 0:00:47.6]} 38. Qc7 {[%clk 0:00:15.3]} 38... Qh5+ {[%clk
0:00:46.8]} 39. Kd2 {[%clk 0:00:13.6]} 39... Qa5+ {[%clk 0:00:45.3]} 40. Ke2
{[%clk 0:00:13.7]} 40... Qxc7 {[%clk 0:00:45.4]} 0-1

[Event "*** Titled Tuesday Blitz"]
[Site "Chess.com"]
[Date "2020.03.03"]
[Round "2"]
[White "guillembaches"]
[Black "Arystanner"]
[Result "0-1"]
[WhiteElo "2406"]
[BlackElo "2749"]
[TimeControl "180+1"]
[EndTime "9:18:38 PST"]
[Termination "Arystanner won on time"]

1. e4 {[%clk 0:03:00.9]} 1... e5 {[%clk 0:02:58]} 2. Nf3 {[%clk 0:03:01]} 2...
Nc6 {[%clk 0:02:58.4]} 3. Nc3 {[%clk 0:03:01.5]} 3... Nf6 {[%clk 0:02:58.3]} 4.
d4 {[%clk 0:03:02]} 4... exd4 {[%clk 0:02:58.3]} 5. Nxd4 {[%clk 0:03:02.9]} 5...
Bb4 {[%clk 0:02:58.6]} 6. Nxc6 {[%clk 0:03:03.4]} 6... bxc6 {[%clk 0:02:59.4]}
7. Bd3 {[%clk 0:03:03.8]} 7... d5 {[%clk 0:02:59.7]} 8. Bd2 {[%clk 0:03:04.3]}
8... O-O {[%clk 0:02:59]} 9. O-O {[%clk 0:03:04.2]} 9... Re8 {[%clk 0:02:54.7]}
10. Nxd5 {[%clk 0:03:03.6]} 10... Nxd5 {[%clk 0:02:51.8]} 11. exd5 {[%clk
0:03:03.4]} 11... Bxd2 {[%clk 0:02:51.7]} 12. Qxd2 {[%clk 0:03:04.3]} 12... cxd5
{[%clk 0:02:52.1]} 13. b4 {[%clk 0:03:04.5]} 13... Bb7 {[%clk 0:02:47.6]} 14.
Rfe1 {[%clk 0:02:54.9]} 14... Qd6 {[%clk 0:02:46.2]} 15. Rxe8+ {[%clk
0:02:47.3]} 15... Rxe8 {[%clk 0:02:47.1]} 16. Re1 {[%clk 0:02:47.2]} 16... Rxe1+
{[%clk 0:02:46.7]} 17. Qxe1 {[%clk 0:02:48.1]} 17... g6 {[%clk 0:02:44.3]} 18.
b5 {[%clk 0:02:28]} 18... d4 {[%clk 0:02:42.9]} 19. f3 {[%clk 0:02:24.1]} 19...
Bd5 {[%clk 0:02:36.1]} 20. a4 {[%clk 0:02:14.3]} 20... Be6 {[%clk 0:02:34.3]}
21. a5 {[%clk 0:02:08.1]} 21... Kg7 {[%clk 0:02:23.9]} 22. g3 {[%clk 0:01:41.5]}
22... Qc5 {[%clk 0:02:19.3]} 23. Kf2 {[%clk 0:01:38.5]} 23... h5 {[%clk
0:02:16.4]} 24. h4 {[%clk 0:01:38.2]} 24... Bc4 {[%clk 0:02:12.1]} 25. Bxc4
{[%clk 0:01:24.5]} 25... Qxc4 {[%clk 0:02:13]} 26. Qe5+ {[%clk 0:01:24.5]} 26...
Kh7 {[%clk 0:02:06.8]} 27. Qe2 {[%clk 0:01:18.5]} 27... Qc3 {[%clk 0:02:02.1]}
28. a6 {[%clk 0:01:04.8]} 28... Qc5 {[%clk 0:01:54.6]} 29. Qd3 {[%clk 0:00:57]}
29... Kg7 {[%clk 0:01:54.8]} 30. Ke2 {[%clk 0:00:46.2]} 30... f6 {[%clk
0:01:54.8]} 31. Kd2 {[%clk 0:00:44]} 31... g5 {[%clk 0:01:54.9]} 32. Qb3 {[%clk
0:00:36.3]} 32... Qe5 {[%clk 0:01:40.6]} 33. hxg5 {[%clk 0:00:19.5]} 33... fxg5
{[%clk 0:01:39.5]} 34. Qc4 {[%clk 0:00:18.7]} 34... Qe3+ {[%clk 0:01:33]} 35.
Kd1 {[%clk 0:00:18.8]} 35... Qxf3+ {[%clk 0:01:33.5]} 36. Kc1 {[%clk 0:00:19.1]}
36... Qc3 {[%clk 0:01:14.1]} 37. Qd5 {[%clk 0:00:11.1]} 37... Kf6 {[%clk
0:01:12.3]} 38. Qd8+ {[%clk 0:00:07.5]} 38... Kf5 {[%clk 0:01:12.8]} 39. Qd5+
{[%clk 0:00:07.2]} 39... Kg4 {[%clk 0:01:12.3]} 40. Qb7 {[%clk 0:00:04.8]} 40...
Qc5 {[%clk 0:00:48.3]} 41. Qc6 {[%clk 0:00:02.7]} 41... Qxc6 {[%clk 0:00:47.2]}
0-1

[Event "*** Titled Tuesday Blitz"]
[Site "Chess.com"]
[Date "2020.03.03"]
[Round "2"]
[White "M1711"]
[Black "cottage_cheese"]
[Result "1-0"]
[WhiteElo "2542"]
[BlackElo "2274"]
[TimeControl "180+1"]
[EndTime "9:18:40 PST"]
[Termination "M1711 won on time"]

1. d4 {[%clk 0:02:59.3]} 1... d5 {[%clk 0:02:59.3]} 2. Bf4 {[%clk 0:02:59.2]}
2... c5 {[%clk 0:02:56.2]} 3. e3 {[%clk 0:02:58.4]} 3... Nc6 {[%clk 0:02:55.3]}
4. c3 {[%clk 0:02:58.7]} 4... Qb6 {[%clk 0:02:48.4]} 5. Qb3 {[%clk 0:02:54.1]}
5... c4 {[%clk 0:02:47.9]} 6. Qc2 {[%clk 0:02:54]} 6... Bf5 {[%clk 0:02:40.6]}
7. Qxf5 {[%clk 0:02:54.1]} 7... Qxb2 {[%clk 0:02:38.1]} 8. Nf3 {[%clk
0:02:33.2]} 8... e6 {[%clk 0:02:27.8]} 9. Qh3 {[%clk 0:02:15.8]} 9... Qxa1
{[%clk 0:02:25.5]} 10. Nd2 {[%clk 0:02:15.9]} 10... Nf6 {[%clk 0:01:55.8]} 11.
Be2 {[%clk 0:02:15.1]} 11... Ne4 {[%clk 0:01:46.6]} 12. O-O {[%clk 0:02:12.8]}
12... Nxd2 {[%clk 0:01:45.4]} 13. Nxd2 {[%clk 0:02:12.5]} 13... Qxc3 {[%clk
0:01:45.8]} 14. Nf3 {[%clk 0:02:10.2]} 14... Qb2 {[%clk 0:01:40.9]} 15. Bd1
{[%clk 0:02:07.8]} 15... c3 {[%clk 0:01:34.5]} 16. Bb3 {[%clk 0:02:00.2]} 16...
a5 {[%clk 0:00:44.5]} 17. e4 {[%clk 0:01:07.4]} 17... a4 {[%clk 0:00:43.1]} 18.
Bxd5 {[%clk 0:01:01.4]} 18... exd5 {[%clk 0:00:21.4]} 19. exd5 {[%clk
0:01:02.3]} 19... Nb4 {[%clk 0:00:15.6]} 20. d6 {[%clk 0:00:33.5]} 20... Nd3
{[%clk 0:00:07.4]} 21. d7+ {[%clk 0:00:19.5]} 21... Kd8 {[%clk 0:00:06.4]} 22.
Bg5+ {[%clk 0:00:15]} 22... f6 {[%clk 0:00:05.2]} 23. Qe6 {[%clk 0:00:12.9]}
23... Be7 {[%clk 0:00:04]} 24. Bh4 {[%clk 0:00:10]} 24... c2 {[%clk 0:00:02.5]}
25. Bg5 {[%clk 0:00:03.2]} 25... fxg5 {[%clk 0:00:01.1]} 26. Qd5 {[%clk
0:00:03.8]} 1-0

[Event "*** Titled Tuesday Blitz"]
[Site "Chess.com"]
[Date "2020.03.03"]
[Round "2"]
[White "karwowskikacper"]
[Black "pouya21"]
[Result "0-1"]
[WhiteElo "2364"]
[BlackElo "2732"]
[TimeControl "180+1"]
[EndTime "9:18:44 PST"]
[Termination "pouya21 won by resignation"]

1. e4 {[%clk 0:03:00.9]} 1... c5 {[%clk 0:02:59.3]} 2. Nf3 {[%clk 0:02:57.7]}
2... d6 {[%clk 0:02:59.1]} 3. c3 {[%clk 0:02:57.7]} 3... Nf6 {[%clk 0:02:58.1]}
4. h3 {[%clk 0:02:58.2]} 4... g6 {[%clk 0:02:57.5]} 5. Bd3 {[%clk 0:02:55.6]}
5... Bg7 {[%clk 0:02:57.5]} 6. O-O {[%clk 0:02:55.1]} 6... O-O {[%clk 0:02:58]}
7. Bc2 {[%clk 0:02:53.7]} 7... Nc6 {[%clk 0:02:58.2]} 8. d4 {[%clk 0:02:54]}
8... cxd4 {[%clk 0:02:58.6]} 9. cxd4 {[%clk 0:02:54.9]} 9... e5 {[%clk
0:02:58.2]} 10. dxe5 {[%clk 0:02:46.9]} 10... dxe5 {[%clk 0:02:57.7]} 11. Nc3
{[%clk 0:02:46.4]} 11... Be6 {[%clk 0:02:56.5]} 12. Bg5 {[%clk 0:02:38.5]} 12...
h6 {[%clk 0:02:51.6]} 13. Bxf6 {[%clk 0:02:32.2]} 13... Bxf6 {[%clk 0:02:49.3]}
14. Qxd8 {[%clk 0:02:32.4]} 14... Rfxd8 {[%clk 0:02:48.4]} 15. Rfd1 {[%clk
0:02:33.3]} 15... Nd4 {[%clk 0:02:43.1]} 16. Nxd4 {[%clk 0:02:02.6]} 16... exd4
{[%clk 0:02:44]} 17. Nd5 {[%clk 0:02:03.5]} 17... Bxd5 {[%clk 0:02:41.3]} 18.
exd5 {[%clk 0:02:04.4]} 18... Rxd5 {[%clk 0:02:40.4]} 19. Be4 {[%clk 0:02:04.5]}
19... Rb5 {[%clk 0:02:35.6]} 20. b3 {[%clk 0:02:02]} 20... Rc8 {[%clk
0:02:29.3]} 21. Rac1 {[%clk 0:02:02]} 21... Rc3 {[%clk 0:02:29.1]} 22. Kf1
{[%clk 0:01:52.4]} 22... Rbc5 {[%clk 0:02:25.5]} 23. Rb1 {[%clk 0:01:51.4]}
23... b5 {[%clk 0:02:22.7]} 24. Rd3 {[%clk 0:01:49.7]} 24... b4 {[%clk
0:02:21.9]} 25. Rbd1 {[%clk 0:01:48.6]} 25... Ra5 {[%clk 0:02:18.1]} 26. R3d2
{[%clk 0:01:44.1]} 26... h5 {[%clk 0:02:16.4]} 27. Bd3 {[%clk 0:01:39.4]} 27...
h4 {[%clk 0:02:13.1]} 28. Re2 {[%clk 0:01:37.5]} 28... Re5 {[%clk 0:02:11.9]}
29. Rxe5 {[%clk 0:01:34.7]} 29... Bxe5 {[%clk 0:02:12.5]} 30. Ke2 {[%clk
0:01:35.1]} 30... Kg7 {[%clk 0:02:12]} 31. Kf3 {[%clk 0:01:35]} 31... f5 {[%clk
0:02:09.5]} 32. Ke2 {[%clk 0:01:32.9]} 32... Kf6 {[%clk 0:02:08.8]} 33. Bc4
{[%clk 0:01:19.6]} 33... Bf4 {[%clk 0:01:51.7]} 34. Bd3 {[%clk 0:01:17.7]} 34...
a5 {[%clk 0:01:50.4]} 35. Kf3 {[%clk 0:01:04.7]} 35... g5 {[%clk 0:01:47.5]} 36.
Ke2 {[%clk 0:01:04.2]} 36... g4 {[%clk 0:01:45.5]} 37. Rh1 {[%clk 0:01:00.9]}
37... Kg5 {[%clk 0:01:43.6]} 38. f3 {[%clk 0:00:54.9]} 38... g3 {[%clk
0:01:41.3]} 39. Rd1 {[%clk 0:00:52.6]} 39... a4 {[%clk 0:01:36.8]} 40. bxa4
{[%clk 0:00:47.2]} 40... Ra3 {[%clk 0:01:36.3]} 41. Bc4 {[%clk 0:00:47.2]} 41...
Rxa4 {[%clk 0:01:24.4]} 42. Bb3 {[%clk 0:00:37.4]} 42... Ra7 {[%clk 0:01:23.4]}
43. Rxd4 {[%clk 0:00:37.5]} 43... Re7+ {[%clk 0:01:22.7]} 44. Kf1 {[%clk
0:00:25.5]} 44... Rc7 {[%clk 0:01:21.8]} 45. Rxb4 {[%clk 0:00:19.1]} 45... Rc1+
{[%clk 0:01:21.3]} 46. Ke2 {[%clk 0:00:19.3]} 46... Rg1 {[%clk 0:01:20.4]} 47.
Rb7 {[%clk 0:00:16.8]} 47... Rxg2+ {[%clk 0:01:20]} 48. Kd3 {[%clk 0:00:17]}
48... Be5 {[%clk 0:01:18.9]} 49. Ke3 {[%clk 0:00:15.5]} 49... Rb2 {[%clk
0:01:18.4]} 50. Rg7+ {[%clk 0:00:14.6]} 50... Bxg7 {[%clk 0:01:15.6]} 0-1

[Event "*** Titled Tuesday Blitz"]
[Site "Chess.com"]
[Date "2020.03.03"]
[Round "2"]
[White "MartinCerveny"]
[Black "Martins-BR"]
[Result "1-0"]
[WhiteElo "2615"]
[BlackElo "2326"]
[TimeControl "180+1"]
[EndTime "9:18:48 PST"]
[Termination "MartinCerveny won by resignation"]

1. d4 {[%clk 0:03:00.9]} 1... f5 {[%clk 0:02:58.1]} 2. Nc3 {[%clk 0:02:59.6]}
2... d5 {[%clk 0:02:55.5]} 3. Bf4 {[%clk 0:02:58.7]} 3... a6 {[%clk 0:02:54.4]}
4. e3 {[%clk 0:02:58.6]} 4... Nf6 {[%clk 0:02:54.1]} 5. Nf3 {[%clk 0:02:56.6]}
5... e6 {[%clk 0:02:54]} 6. Be2 {[%clk 0:02:54.1]} 6... Bd6 {[%clk 0:02:53.8]}
7. Bxd6 {[%clk 0:02:51.6]} 7... cxd6 {[%clk 0:02:53]} 8. h3 {[%clk 0:02:50.9]}
8... O-O {[%clk 0:02:52.2]} 9. g4 {[%clk 0:02:50.3]} 9... Ne4 {[%clk 0:02:47.5]}
10. gxf5 {[%clk 0:02:46.4]} 10... Nxc3 {[%clk 0:02:43.7]} 11. bxc3 {[%clk
0:02:45.8]} 11... Rxf5 {[%clk 0:02:43.1]} 12. h4 {[%clk 0:02:40.1]} 12... h6
{[%clk 0:02:41.1]} 13. c4 {[%clk 0:02:34.8]} 13... Nc6 {[%clk 0:02:37.2]} 14. c3
{[%clk 0:02:29.8]} 14... dxc4 {[%clk 0:02:20]} 15. Bxc4 {[%clk 0:02:27.9]} 15...
Qf6 {[%clk 0:02:19.4]} 16. Be2 {[%clk 0:02:25.4]} 16... Bd7 {[%clk 0:02:17.8]}
17. Rg1 {[%clk 0:02:15.4]} 17... Rf8 {[%clk 0:02:16.7]} 18. Rg3 {[%clk
0:02:15.1]} 18... Ne7 {[%clk 0:02:15.4]} 19. e4 {[%clk 0:02:11.3]} 19... Rf4
{[%clk 0:02:10.1]} 20. e5 {[%clk 0:02:10.7]} 20... Qf5 {[%clk 0:01:59.1]} 21.
exd6 {[%clk 0:02:03.2]} 21... Nd5 {[%clk 0:01:56.4]} 22. Rc1 {[%clk 0:01:51.4]}
22... Bc6 {[%clk 0:01:37]} 23. Qc2 {[%clk 0:01:42.6]} 23... Qxc2 {[%clk
0:01:01.4]} 24. Rxc2 {[%clk 0:01:43.5]} 24... Nb6 {[%clk 0:01:00.8]} 25. Ne5
{[%clk 0:01:41.6]} 25... Rxf2 {[%clk 0:00:53.8]} 26. c4 {[%clk 0:01:39]} 26...
Rh2 {[%clk 0:00:51.5]} 27. Bd3 {[%clk 0:01:33.7]} 27... Rh1+ {[%clk 0:00:47.3]}
28. Kd2 {[%clk 0:01:33.4]} 28... Rxh4 {[%clk 0:00:44.9]} 29. Kc3 {[%clk
0:01:27.9]} 29... Na4+ {[%clk 0:00:42.6]} 30. Kb3 {[%clk 0:01:27.6]} 30... Nb6
{[%clk 0:00:34]} 31. Kb4 {[%clk 0:01:26.4]} 31... Nd7 {[%clk 0:00:27.8]} 32.
Nxd7 {[%clk 0:01:17.9]} 32... Bxd7 {[%clk 0:00:28.7]} 33. Kc3 {[%clk 0:01:17.3]}
33... Rff4 {[%clk 0:00:25.5]} 34. Rcg2 {[%clk 0:01:16.8]} 34... g5 {[%clk
0:00:24.7]} 35. Rb2 {[%clk 0:01:16.5]} 35... b5 {[%clk 0:00:23.2]} 36. cxb5
{[%clk 0:01:16]} 36... axb5 {[%clk 0:00:23.2]} 37. a4 {[%clk 0:01:15.1]} 37...
Rxd4 {[%clk 0:00:21.4]} 38. axb5 {[%clk 0:01:14.1]} 38... Rxd6 {[%clk
0:00:20.3]} 39. b6 {[%clk 0:01:14.4]} 39... Bc6 {[%clk 0:00:20.7]} 40. b7 {[%clk
0:01:11.9]} 40... Bxb7 {[%clk 0:00:20.4]} 41. Rxb7 {[%clk 0:01:12.8]} 41... Rhd4
{[%clk 0:00:19.8]} 42. Rf3 {[%clk 0:01:04.7]} 42... Rd7 {[%clk 0:00:19.4]} 43.
Rb8+ {[%clk 0:00:59.9]} 43... Kg7 {[%clk 0:00:19.3]} 44. Rb4 {[%clk 0:00:58.7]}
44... Rxb4 {[%clk 0:00:18.4]} 45. Kxb4 {[%clk 0:00:59.6]} 45... h5 {[%clk
0:00:18.2]} 46. Kc3 {[%clk 0:00:59.6]} 46... g4 {[%clk 0:00:18.2]} 47. Re3
{[%clk 0:00:59.6]} 47... Kf6 {[%clk 0:00:18]} 48. Kd2 {[%clk 0:00:59.4]} 48...
e5 {[%clk 0:00:17.6]} 49. Ke2 {[%clk 0:00:59.5]} 49... Rd4 {[%clk 0:00:18.1]}
50. Kf2 {[%clk 0:00:56.2]} 50... Rf4+ {[%clk 0:00:18.7]} 51. Kg2 {[%clk
0:00:55.2]} 51... Ke6 {[%clk 0:00:16.9]} 52. Be2 {[%clk 0:00:55]} 52... e4
{[%clk 0:00:15.5]} 53. Kg3 {[%clk 0:00:54.3]} 53... Kf5 {[%clk 0:00:15.2]} 54.
Ra3 {[%clk 0:00:53.7]} 54... Rf3+ {[%clk 0:00:14.6]} 55. Bxf3 {[%clk 0:00:53.2]}
55... gxf3 {[%clk 0:00:13.8]} 56. Ra5+ {[%clk 0:00:52.9]} 56... Kf6 {[%clk
0:00:13.4]} 57. Rxh5 {[%clk 0:00:52.3]} 1-0